[Event "Teplice Open 2019"]
[Site "Teplice"]
[Date "2019.06.17"]
[Round "3.4"]
[White "Vogel, Roven"]
[Black "Movsesian, Sergei"]
[Result "0-1"]
[ECO "D30"]
[WhiteElo "2471"]
[BlackElo "2639"]
[Annotator "RC"]
[PlyCount "76"]
[EventDate "2019.06.15"]
[EventType "swiss"]
[EventCountry "CZE"]
[SourceTitle "playchess.com"]
[Source "ChessBase"]
[SourceQuality "1"]
[TimeControl "40/5400+30:1800+30"]

1. d4 {[%emt 0:00:00]} Nf6 {[%emt 0:00:00]} 2. c4 {[%emt 0:00:00]} e6 {[%emt 0:00:00]} 3. Nf3 {[%emt 0:00:00]} d5 {[%emt 0:00:00]} 4. e3 {[%emt 0:00:04]} a6 {[%emt 0:00:36]} 5. Nbd2 {[%emt 0:01:49]} c5 {[%emt 0:02:18]} 6. b3 {[%emt 0:02:29]} Be7 {[%emt 0:03:58]} 7. Bb2 {[%emt 0:00:37]} O-O {[%emt 0:01:05]} 8. Bd3 {[%emt 0:04:45]} Nc6 {[%emt 0:02:43]} 9. O-O {[%emt 0:01:10]} Nb4 {[%emt 0:03:00]} 10. Be2 {[%emt 0:03:18]} b6 {[%emt 0:03:28]} 11. Ne5 {[%emt 0:03:00]} Bb7 {[%emt 0:00:58]} 12. Ndf3 {[%emt 0:02:15]} Ne4 {[%emt 0:05:53]} 13. a3 {[%emt 0:03:03]} Nc6 {[%emt 0:00:21]} 14. Nxc6 {[%emt 0:02:24]} Bxc6 {[%emt 0:00:05]} 15. Ne5 {[%emt 0:05:08]} Bb7 {[%emt 0:00:36]} 16. Bf3 {[%emt 0:00:34]} Ng5 {[%emt 0:06:10]} 17. Be2 {[%emt 0:01:11]} Ne4 {[%emt 0:05:35]} 18. Bf3 {[%emt 0:00:58]} cxd4 {[%emt 0:07:27]} 19. Bxe4 {[%emt 0:05:32]} dxe4 {[%emt 0:00:47]} 20. Qxd4 {[%emt 0:02:45]} f6 {[%emt 0:06:05]} 21. Qd7 {[%emt 0:03:27]} Bc8 {[%emt 0:01:55]} 22. Qc6 {[%emt 0:03:47]} Ra7 {[%emt 0:00:48]} 23. Rfd1 {[%emt 0:10:35]} Qc7 {[%emt 0:00:42]} 24. Qxe4 {[%emt 0:00:09]} fxe5 {[%emt 0:01:16]} 25. Bxe5 {[%emt 0:00:08]} Qb7 {[%emt 0:00:59]} 26. Qg4 {[%emt 0:00:59]} Rf7 {[%emt 0:01:59]} 27. a4 {[%emt 0:09:13]} Qc6 {[%emt 0:02:51]} 28. h3 {[%emt 0:01:41]} Rd7 {[%emt 0:02:54]} 29. Rxd7 {[%emt 0:01:00]} Bxd7 {[%emt 0:00:40]} 30. Rd1 {[%emt 0:00:19]} Bf8 {[%emt 0:00:38]} 31. Rd4 {[%emt 0:00:55]} Qc5 {[%emt 0:01:23]} 32. Qg3 {[%emt 0:01:41]} Qb4 {[%emt 0:03:29]} 33. Rd3 {[%emt 0:00:25]} Qe1+ {[%emt 0:04:27]} 34. Kh2 {[%emt 0:00:52]} Qe2 {[%emt 0:04:14]} 35. Rd4 {[%emt 0:01:20]} Bc6 {[%emt 0:00:57]} 36. f4 {[%emt 0:01:56]} Rd7 {[%emt 0:02:47]} 37. Qg5 {[%emt 0:01:13]} Rxd4 {[%emt 0:01:52]} 38. Bxd4 {[%emt 0:03:08]} Qc2 {[%emt 0:04:00]} 0-1

[Event "Teplice Open 2019"]
[Site "Teplice"]
[Date "2019.06.17"]
[Round "3.6"]
[White "Song, Raymond"]
[Black "Lagarde, Maxime"]
[Result "1-0"]
[ECO "C06"]
[WhiteElo "2450"]
[BlackElo "2599"]
[Annotator "ChessBase"]
[PlyCount "84"]
[EventDate "2019.06.15"]
[EventType "swiss"]
[EventCountry "CZE"]
[SourceTitle "playchess.com"]
[Source "ChessBase"]
[SourceQuality "1"]
[TimeControl "40/5400+30:1800+30"]

1. e4 {[%emt 0:00:00]} e6 {[%emt 0:00:02]} 2. d4 {[%emt 0:00:00]} d5 {[%emt 0:00:03]} 3. Nc3 {[%emt 0:00:00]} Nf6 {[%emt 0:02:33]} 4. e5 {[%emt 0:00:00]} Nfd7 {[%emt 0:00:05]} 5. Nce2 {[%emt 0:00:58]} c5 {[%emt 0:01:30]} 6. c3 {[%emt 0:00:05]} Nc6 {[%emt 0:00:24]} 7. Nf3 {[%emt 0:00:05]} cxd4 {[%emt 0:06:24]} 8. cxd4 {[%emt 0:00:17]} f6 {[%emt 0:01:07]} 9. exf6 {[%emt 0:00:06]} Qxf6 {[%emt 0:03:24]} 10. Nc3 {[%emt 0:02:45]} Bd6 {[%emt 0:02:17]} 11. Bd3 {[%emt 0:00:40]} h6 {[%emt 0:02:12]} 12. O-O {[%emt 0:02:05]} O-O {[%emt 0:00:24]} 13. Bc2 {[%emt 0:05:28]} Rf7 {[%emt 0:00:44]} 14. a3 {[%emt 0:08:28]} Nf8 {[%emt 0:01:05]} 15. Ne2 {[%emt 0:07:48]} Bd7 {[%emt 0:02:34]} 16. Ng3 {[%emt 0:00:22]} Rc8 {[%emt 0:01:39]} 17. Nh5 {[%emt 0:05:25]} Qd8 {[%emt 0:00:50]} 18. Re1 {[%emt 0:00:12]} Be8 {[%emt 0:08:35]} 19. Be3 {[%emt 0:08:42]} Na5 {[%emt 0:07:05]} 20. Bd3 {[%emt 0:06:39]} Nc4 {[%emt 0:03:02]} 21. Bc1 {[%emt 0:00:40]} Qb6 {[%emt 0:07:43]} 22. b3 {[%emt 0:07:28]} Rxf3 {[%emt 0:05:45]} 23. Qxf3 {[%emt 0:02:10]} Qxd4 {[%emt 0:01:32]} 24. Bxh6 {[%emt 0:14:05]} Qh4 {[%emt 0:05:37]} 25. Nxg7 {[%emt 0:14:36]} Qxh2+ {[%emt 0:03:20]} 26. Kf1 {[%emt 0:00:01]} Qh1+ {[%emt 0:01:00]} 27. Ke2 {[%emt 0:00:01]} Qxh6 {[%emt 0:00:12]} 28. Nxe8 {[%emt 0:00:52]} Be5 {[%emt 0:03:38]} 29. Qg4+ {[%emt 0:01:59]} Kf7 {[%emt 0:00:41]} 30. bxc4 {[%emt 0:00:05]} Rxe8 {[%emt 0:00:26]} 31. Rab1 {[%emt 0:00:04]} b6 {[%emt 0:00:34]} 32. Rh1 {[%emt 0:00:10]} Qf6 {[%emt 0:00:06]} 33. Rh3 {[%emt 0:00:35]} Ke7 {[%emt 0:00:21]} 34. Qh5 {[%emt 0:01:12]} Nd7 {[%emt 0:00:56]} 35. cxd5 {[%emt 0:00:31]} exd5 {[%emt 0:00:05]} 36. Kf1 {[%emt 0:00:08]} Kd8 {[%emt 0:02:54]} 37. Re1 {[%emt 0:03:16]} Qd6 {[%emt 0:02:28]} 38. Bb5 {[%emt 0:01:25]} Nf6 {[%emt 0:00:07]} 39. Qf5 {[%emt 0:01:05]} Re6 {[%emt 0:00:12]} 40. Rhe3 {[%emt 0:01:21]} Ne4 {[%emt 0:00:08]} 41. Rxe4 {[%emt 0:34:01]} dxe4 {[%emt 0:30:05]} 42. Qxe4 {[%emt 0:00:52]} Qxa3 {[%emt 0:03:32]} 1-0

[Event "Teplice Open 2019"]
[Site "Teplice"]
[Date "2019.06.17"]
[Round "3.7"]
[White "Erenberg, Ariel"]
[Black "Hracek, Zbynek"]
[Result "1/2-1/2"]
[ECO "D37"]
[WhiteElo "2434"]
[BlackElo "2582"]
[Annotator "ChessBase"]
[PlyCount "61"]
[EventDate "2019.06.15"]
[EventType "swiss"]
[EventCountry "CZE"]
[SourceTitle "playchess.com"]
[Source "ChessBase"]
[SourceQuality "1"]
[TimeControl "40/5400+30:1800+30"]

1. d4 {[%emt 0:00:00]} Nf6 {[%emt 0:00:00]} 2. c4 {[%emt 0:00:00]} e6 {[%emt 0:00:00]} 3. Nf3 {[%emt 0:00:00]} d5 {[%emt 0:00:06]} 4. Nc3 {[%emt 0:00:09]} Nbd7 {[%emt 0:00:07]} 5. Bf4 {[%emt 0:00:50]} Bb4 {[%emt 0:08:57]} 6. cxd5 {[%emt 0:17:04]} Nxd5 {[%emt 0:05:20]} 7. Bd2 {[%emt 0:00:37]} N7f6 {[%emt 0:02:01]} 8. Qc2 {[%emt 0:08:43]} Nxc3 {[%emt 0:10:54]} 9. bxc3 {[%emt 0:00:15]} Ba5 {[%emt 0:00:11]} 10. e4 {[%emt 0:02:40]} c5 {[%emt 0:00:41]} 11. dxc5 {[%emt 0:13:42]} Qc7 {[%emt 0:09:50]} 12. Rb1 {[%emt 0:20:13]} Nd7 {[%emt 0:08:06]} 13. Bb5 {[%emt 0:06:50]} O-O {[%emt 0:09:17]} 14. Bxd7 {[%emt 0:05:23]} Bxd7 {[%emt 0:00:17]} 15. Be3 {[%emt 0:02:30]} b6 {[%emt 0:06:52]} 16. Nd2 {[%emt 0:01:47]} bxc5 {[%emt 0:01:18]} 17. Nc4 {[%emt 0:00:16]} Rab8 {[%emt 0:00:17]} 18. Nxa5 {[%emt 0:02:54]} Qxa5 {[%emt 0:11:28]} 19. O-O {[%emt 0:00:20]} e5 {[%emt 0:01:13]} 20. Rxb8 {[%emt 0:01:39]} Rxb8 {[%emt 0:00:04]} 21. Rb1 {[%emt 0:00:09]} Rxb1+ {[%emt 0:01:13]} 22. Qxb1 {[%emt 0:00:01]} Qb6 {[%emt 0:00:12]} 23. Qxb6 {[%emt 0:03:46]} axb6 {[%emt 0:00:35]} 24. f4 {[%emt 0:00:50]} Bc6 {[%emt 0:03:42]} 25. fxe5 {[%emt 0:00:09]} Bxe4 {[%emt 0:00:02]} 26. Bg5 {[%emt 0:00:48]} c4 {[%emt 0:00:01]} 27. a4 {[%emt 0:00:30]} Bc6 {[%emt 0:00:04]} 28. Be3 {[%emt 0:00:18]} Bxa4 {[%emt 0:00:02]} 29. Bxb6 {[%emt 0:00:05]} g5 {[%emt 0:00:09]} 30. Bd8 {[%emt 0:00:07]} h6 {[%emt 0:00:04]} 31. Kf2 {[%emt 0:00:07]} 1/2-1/2

[Event "Teplice Open 2019"]
[Site "Teplice"]
[Date "2019.06.17"]
[Round "3.8"]
[White "Cawdery, Daniel"]
[Black "Epishin, Vladimir"]
[Result "0-1"]
[ECO "B01"]
[WhiteElo "2428"]
[BlackElo "2564"]
[Annotator "ChessBase"]
[PlyCount "62"]
[EventDate "2019.06.15"]
[EventType "swiss"]
[EventCountry "CZE"]
[SourceTitle "playchess.com"]
[Source "ChessBase"]
[SourceQuality "1"]
[TimeControl "40/5400+30:1800+30"]

1. e4 {[%emt 0:00:00]} d5 {[%emt 0:01:01]} 2. exd5 {[%emt 0:00:00]} Qxd5 {[%emt 0:00:08]} 3. Nc3 {[%emt 0:00:06]} Qd6 {[%emt 0:00:02]} 4. d4 {[%emt 0:00:13]} Nf6 {[%emt 0:00:09]} 5. Nf3 {[%emt 0:00:14]} g6 {[%emt 0:00:20]} 6. h3 {[%emt 0:00:53]} Bg7 {[%emt 0:01:28]} 7. Nb5 {[%emt 0:01:14]} Qd8 {[%emt 0:00:36]} 8. Bf4 {[%emt 0:00:09]} Nd5 {[%emt 0:02:20]} 9. Be5 {[%emt 0:03:40]} O-O {[%emt 0:00:53]} 10. Bxg7 {[%emt 0:12:35]} Kxg7 {[%emt 0:00:15]} 11. c4 {[%emt 0:00:05]} c6 {[%emt 0:02:58]} 12. Nc3 {[%emt 0:00:47]} Nxc3 {[%emt 0:00:13]} 13. bxc3 {[%emt 0:00:01]} Qa5 {[%emt 0:01:03]} 14. Qd2 {[%emt 0:04:29]} Nd7 {[%emt 0:00:04]} 15. Bd3 {[%emt 0:11:48]} e5 {[%emt 0:02:01]} 16. O-O {[%emt 0:00:30]} exd4 {[%emt 0:00:45]} 17. cxd4 {[%emt 0:01:26]} Qxd2 {[%emt 0:00:11]} 18. Nxd2 {[%emt 0:00:01]} Rd8 {[%emt 0:01:34]} 19. Nf3 {[%emt 0:03:46]} Nf8 {[%emt 0:03:54]} 20. Rfd1 {[%emt 0:02:36]} Be6 {[%emt 0:01:19]} 21. Bf1 {[%emt 0:07:51]} f6 {[%emt 0:06:53]} 22. Rd2 {[%emt 0:01:47]} Rd7 {[%emt 0:00:52]} 23. Rad1 {[%emt 0:06:11]} Rad8 {[%emt 0:00:40]} 24. a4 {[%emt 0:03:07]} a5 {[%emt 0:09:51]} 25. Ne1 {[%emt 0:06:24]} Bf7 {[%emt 0:04:04]} 26. Nf3 {[%emt 0:08:08]} Ne6 {[%emt 0:04:42]} 27. g3 {[%emt 0:01:34]} h5 {[%emt 0:15:42]} 28. d5 {[%emt 0:10:17]} cxd5 {[%emt 0:09:51]} 29. Rxd5 {[%emt 0:00:07]} Nc5 {[%emt 0:01:47]} 30. Rxd7 {[%emt 0:02:00]} Rxd7 {[%emt 0:00:08]} 31. Rb1 {[%emt 0:05:58]} Rd6 {[%emt 0:01:30]} 0-1

[Event "Teplice Open 2019"]
[Site "Teplice"]
[Date "2019.06.17"]
[Round "3.11"]
[White "Handler, Lukas"]
[Black "Babula, Vlastimil"]
[Result "0-1"]
[ECO "E15"]
[WhiteElo "2418"]
[BlackElo "2550"]
[Annotator "ChessBase"]
[PlyCount "82"]
[EventDate "2019.06.15"]
[EventType "swiss"]
[EventCountry "CZE"]
[SourceTitle "playchess.com"]
[Source "ChessBase"]
[SourceQuality "1"]
[TimeControl "40/5400+30:1800+30"]

1. d4 {[%emt 0:00:00]} Nf6 {[%emt 0:00:00]} 2. c4 {[%emt 0:00:00]} e6 {[%emt 0:00:00]} 3. Nf3 {[%emt 0:00:00]} b6 {[%emt 0:00:10]} 4. g3 {[%emt 0:00:00]} Ba6 {[%emt 0:00:20]} 5. Qc2 {[%emt 0:00:11]} c5 {[%emt 0:01:31]} 6. d5 {[%emt 0:00:24]} exd5 {[%emt 0:00:00]} 7. cxd5 {[%emt 0:00:07]} g6 {[%emt 0:00:08]} 8. Bg2 {[%emt 0:02:05]} Bg7 {[%emt 0:00:28]} 9. O-O {[%emt 0:00:53]} O-O {[%emt 0:00:34]} 10. Nc3 {[%emt 0:01:31]} d6 {[%emt 0:03:43]} 11. a4 {[%emt 0:02:52]} Re8 {[%emt 0:02:08]} 12. Re1 {[%emt 0:00:38]} Bb7 {[%emt 0:01:38]} 13. e4 {[%emt 0:01:02]} Na6 {[%emt 0:00:15]} 14. Bf4 {[%emt 0:02:51]} Nh5 {[%emt 0:07:10]} 15. Bg5 {[%emt 0:04:52]} Qd7 {[%emt 0:01:23]} 16. h3 {[%emt 0:14:14]} h6 {[%emt 0:08:34]} 17. Be3 {[%emt 0:02:51]} Nf6 {[%emt 0:00:59]} 18. Rad1 {[%emt 0:15:48]} Nb4 {[%emt 0:02:33]} 19. Qb1 {[%emt 0:00:30]} Ba6 {[%emt 0:08:48]} 20. Bf4 {[%emt 0:07:49]} Rad8 {[%emt 0:09:38]} 21. e5 {[%emt 0:12:01]} Nh5 {[%emt 0:02:59]} 22. e6 {[%emt 0:00:29]} Qe7 {[%emt 0:27:13]} 23. Bc1 {[%emt 0:03:13]} c4 {[%emt 0:02:11]} 24. Nd4 {[%emt 0:09:16]} Bb7 {[%emt 0:03:18]} 25. Be4 {[%emt 0:05:21]} f5 {[%emt 0:05:44]} 26. Bf3 {[%emt 0:01:40]} Nf6 {[%emt 0:00:09]} 27. Nde2 {[%emt 0:00:41]} Nh7 {[%emt 0:06:29]} 28. Be3 {[%emt 0:06:22]} Nd3 {[%emt 0:02:10]} 29. Rxd3 {[%emt 0:00:25]} cxd3 {[%emt 0:00:02]} 30. Qxd3 {[%emt 0:00:08]} Rc8 {[%emt 0:00:14]} 31. h4 {[%emt 0:01:03]} Nf8 {[%emt 0:01:14]} 32. h5 {[%emt 0:00:30]} Nxe6 {[%emt 0:00:21]} 33. hxg6 {[%emt 0:02:47]} Ng5 {[%emt 0:00:52]} 34. Bg2 {[%emt 0:00:37]} Ne4 {[%emt 0:00:51]} 35. Bh3 {[%emt 0:01:52]} Qf6 {[%emt 0:01:19]} 36. Nb5 {[%emt 0:00:56]} Qxg6 {[%emt 0:01:10]} 37. Nf4 {[%emt 0:00:42]} Qf7 {[%emt 0:00:18]} 38. f3 {[%emt 0:01:37]} Ng5 {[%emt 0:01:11]} 39. Bxf5 {[%emt 0:00:28]} Nxf3+ {[%emt 0:00:52]} 40. Kh1 {[%emt 0:00:37]} Nxe1 {[%emt 0:00:38]} 41. Bh7+ {[%emt 0:02:03]} Kh8 {[%emt 0:02:41]} 0-1

[Event "Teplice Open 2019"]
[Site "Teplice"]
[Date "2019.06.17"]
[Round "3.12"]
[White "Plat, Vojtech"]
[Black "Siddharth, Jagadeesh"]
[Result "1-0"]
[ECO "A13"]
[WhiteElo "2547"]
[BlackElo "2416"]
[Annotator "ChessBase"]
[PlyCount "87"]
[EventDate "2019.06.15"]
[EventType "swiss"]
[EventCountry "CZE"]
[SourceTitle "playchess.com"]
[Source "ChessBase"]
[SourceQuality "1"]
[TimeControl "40/5400+30:1800+30"]

1. b3 {[%emt 0:00:00]} Nf6 {[%emt 0:00:18]} 2. Bb2 {[%emt 0:00:00]} e6 {[%emt 0:00:07]} 3. Nf3 {[%emt 0:00:14]} d5 {[%emt 0:00:17]} 4. e3 {[%emt 0:00:06]} Be7 {[%emt 0:00:24]} 5. c4 {[%emt 0:00:12]} O-O {[%emt 0:00:09]} 6. Nc3 {[%emt 0:00:22]} b6 {[%emt 0:00:08]} 7. Rc1 {[%emt 0:01:34]} Bb7 {[%emt 0:00:08]} 8. Be2 {[%emt 0:00:58]} Nbd7 {[%emt 0:00:28]} 9. O-O {[%emt 0:00:45]} a6 {[%emt 0:00:24]} 10. Qc2 {[%emt 0:06:05]} Bd6 {[%emt 0:00:17]} 11. d4 {[%emt 0:02:26]} Qe7 {[%emt 0:00:20]} 12. Nd2 {[%emt 0:03:53]} c5 {[%emt 0:04:04]} 13. Bf3 {[%emt 0:07:23]} Rac8 {[%emt 0:17:35]} 14. Rfe1 {[%emt 0:08:42]} b5 {[%emt 0:15:56]} 15. dxc5 {[%emt 0:05:14]} Bxc5 {[%emt 0:10:46]} 16. cxd5 {[%emt 0:03:27]} exd5 {[%emt 0:00:45]} 17. Qf5 {[%emt 0:03:05]} Qe6 {[%emt 0:01:10]} 18. Qb1 {[%emt 0:04:16]} Rfe8 {[%emt 0:03:23]} 19. Ne2 {[%emt 0:09:56]} Ne4 {[%emt 0:03:09]} 20. Nxe4 {[%emt 0:07:28]} dxe4 {[%emt 0:00:09]} 21. Nf4 {[%emt 0:00:01]} Qe7 {[%emt 0:06:54]} 22. Bg4 {[%emt 0:00:45]} Rcd8 {[%emt 0:00:55]} 23. Red1 {[%emt 0:13:29]} Ne5 {[%emt 0:01:21]} 24. Bf5 {[%emt 0:03:32]} Ng6 {[%emt 0:04:51]} 25. Rxd8 {[%emt 0:03:58]} Rxd8 {[%emt 0:00:01]} 26. Nh5 {[%emt 0:00:19]} f6 {[%emt 0:01:28]} 27. Ng3 {[%emt 0:00:29]} Rd2 {[%emt 0:02:23]} 28. Bc3 {[%emt 0:00:43]} Rd8 {[%emt 0:01:28]} 29. Bxe4 {[%emt 0:05:34]} Bxe4 {[%emt 0:01:12]} 30. Nxe4 {[%emt 0:00:04]} Ba3 {[%emt 0:01:48]} 31. Rf1 {[%emt 0:00:07]} Ne5 {[%emt 0:01:14]} 32. Rd1 {[%emt 0:01:12]} Nc6 {[%emt 0:00:08]} 33. Ng3 {[%emt 0:00:41]} Bb4 {[%emt 0:00:58]} 34. Rxd8+ {[%emt 0:01:18]} Qxd8 {[%emt 0:00:01]} 35. Qe4 {[%emt 0:00:21]} Bxc3 {[%emt 0:00:35]} 36. Qxc6 {[%emt 0:00:09]} Be5 {[%emt 0:00:01]} 37. Nf1 {[%emt 0:00:42]} a5 {[%emt 0:01:01]} 38. Qxb5 {[%emt 0:00:06]} h5 {[%emt 0:00:19]} 39. Qe2 {[%emt 0:00:07]} g6 {[%emt 0:00:17]} 40. g3 {[%emt 0:01:39]} Qd5 {[%emt 0:00:21]} 41. Qc4 {[%emt 0:31:01]} Qxc4 {[%emt 0:30:09]} 42. bxc4 {[%emt 0:00:00]} Bc3 {[%emt 0:00:28]} 43. f3 {[%emt 0:02:13]} Be1 {[%emt 0:00:09]} 44. e4 {[%emt 0:00:15]} 1-0

[Event "Teplice Open 2019"]
[Site "Teplice"]
[Date "2019.06.17"]
[Round "3.13"]
[White "Kostolansky, Sebastian Lukas"]
[Black "Shevchenko, Kirill"]
[Result "1/2-1/2"]
[ECO "B50"]
[WhiteElo "2379"]
[BlackElo "2539"]
[Annotator "ChessBase"]
[PlyCount "80"]
[EventDate "2019.06.15"]
[EventType "swiss"]
[EventCountry "CZE"]
[SourceTitle "playchess.com"]
[Source "ChessBase"]
[SourceQuality "1"]
[TimeControl "40/5400+30:1800+30"]

1. e4 {[%emt 0:00:00]} c5 {[%emt 0:00:00]} 2. Nf3 {[%emt 0:00:00]} d6 {[%emt 0:00:00]} 3. c3 {[%emt 0:00:00]} Nf6 {[%emt 0:00:00]} 4. h3 {[%emt 0:00:00]} Bd7 {[%emt 0:00:00]} 5. Bd3 {[%emt 0:01:38]} Bc6 {[%emt 0:00:00]} 6. Qe2 {[%emt 0:00:46]} Nh5 {[%emt 0:00:03]} 7. Bc2 {[%emt 0:06:11]} Nf4 {[%emt 0:05:27]} 8. Qf1 {[%emt 0:05:13]} d5 {[%emt 0:02:38]} 9. d3 {[%emt 0:04:48]} dxe4 {[%emt 0:11:06]} 10. dxe4 {[%emt 0:00:46]} Qc7 {[%emt 0:01:20]} 11. Bxf4 {[%emt 0:06:02]} Qxf4 {[%emt 0:00:06]} 12. Nbd2 {[%emt 0:02:08]} Nd7 {[%emt 0:21:16]} 13. Qe2 {[%emt 0:01:36]} Ne5 {[%emt 0:14:09]} 14. Nxe5 {[%emt 0:00:30]} Qxe5 {[%emt 0:00:30]} 15. O-O {[%emt 0:04:27]} e6 {[%emt 0:10:38]} 16. f4 {[%emt 0:02:42]} Qc7 {[%emt 0:00:07]} 17. f5 {[%emt 0:12:08]} O-O-O {[%emt 0:05:05]} 18. fxe6 {[%emt 0:00:00]} fxe6 {[%emt 0:00:05]} 19. Bb3 {[%emt 0:06:18]} Kb8 {[%emt 0:11:04]} 20. Bxe6 {[%emt 0:15:55]} Qe5 {[%emt 0:02:59]} 21. Bc4 {[%emt 0:00:07]} Bd6 {[%emt 0:03:07]} 22. Nf3 {[%emt 0:00:07]} Qg3 {[%emt 0:00:13]} 23. Bb5 {[%emt 0:06:17]} Bxb5 {[%emt 0:01:37]} 24. Qxb5 {[%emt 0:00:06]} g5 {[%emt 0:09:32]} 25. e5 {[%emt 0:08:07]} Bc7 {[%emt 0:04:33]} 26. Qe2 {[%emt 0:04:55]} h5 {[%emt 0:00:00]} 27. Qe1 {[%emt 0:01:25]} Qf4 {[%emt 0:00:00]} 28. Nd4 {[%emt 0:05:14]} Qxe5 {[%emt 0:00:00]} 29. Qxe5 {[%emt 0:00:30]} Bxe5 {[%emt 0:00:00]} 30. Ne6 {[%emt 0:00:16]} Rd2 {[%emt 0:00:00]} 31. Rf5 {[%emt 0:06:37]} Bg3 {[%emt 0:00:00]} 32. Raf1 {[%emt 0:00:13]} b6 {[%emt 0:00:00]} 33. Rxg5 {[%emt 0:01:27]} h4 34. b4 {[%emt 0:00:00]} Re8 {[%emt 0:00:43]} 35. Nf4 {[%emt 0:00:27]} Re4 {[%emt 0:00:37]} 36. Nh5 {[%emt 0:00:29]} Ree2 {[%emt 0:00:13]} 37. Rf8+ {[%emt 0:00:34]} Kb7 {[%emt 0:00:30]} 38. Nxg3 {[%emt 0:00:04]} Rxg2+ {[%emt 0:00:02]} 39. Kf1 {[%emt 0:00:12]} hxg3 {[%emt 0:00:44]} 40. b5 {[%emt 0:00:15]} Rgf2+ {[%emt 0:00:41]} 1/2-1/2

[Event "Teplice Open 2019"]
[Site "Teplice"]
[Date "2019.06.17"]
[Round "3.14"]
[White "Krishna, Teja N."]
[Black "Ali Marandi, Cemil Can"]
[Result "1-0"]
[ECO "A40"]
[WhiteElo "2357"]
[BlackElo "2520"]
[Annotator "ChessBase"]
[PlyCount "69"]
[EventDate "2019.06.15"]
[EventType "swiss"]
[EventCountry "CZE"]
[SourceTitle "playchess.com"]
[Source "ChessBase"]
[SourceQuality "1"]
[TimeControl "40/5400+30:1800+30"]

1. d4 {[%emt 0:00:00]} e6 {[%emt 0:00:00]} 2. c4 {[%emt 0:00:11]} g6 {[%emt 0:00:00]} 3. Nc3 {[%emt 0:01:19]} Bg7 {[%emt 0:02:50]} 4. Nf3 {[%emt 0:00:38]} Ne7 {[%emt 0:00:20]} 5. h4 {[%emt 0:02:33]} h6 {[%emt 0:00:26]} 6. Bf4 {[%emt 0:01:16]} d5 {[%emt 0:01:37]} 7. Rc1 {[%emt 0:07:52]} dxc4 {[%emt 0:08:19]} 8. e4 {[%emt 0:00:44]} a6 {[%emt 0:00:14]} 9. Bxc4 {[%emt 0:06:50]} b5 {[%emt 0:03:29]} 10. Bb3 {[%emt 0:00:06]} Bb7 {[%emt 0:00:31]} 11. Be5 {[%emt 0:03:05]} Bxe5 {[%emt 0:03:09]} 12. Nxe5 {[%emt 0:00:14]} Nd7 {[%emt 0:00:16]} 13. Nd3 {[%emt 0:03:23]} h5 {[%emt 0:23:49]} 14. Qf3 {[%emt 0:15:21]} O-O {[%emt 0:08:38]} 15. Qf4 {[%emt 0:06:42]} Nc6 {[%emt 0:06:05]} 16. Ne2 {[%emt 0:00:58]} Na5 {[%emt 0:00:15]} 17. f3 {[%emt 0:06:05]} Rc8 {[%emt 0:04:59]} 18. Nc5 {[%emt 0:05:38]} Qe7 19. Nxd7 {[%emt 0:03:28]} Qxd7 {[%emt 0:00:21]} 20. Rc5 {[%emt 0:13:27]} Kh7 {[%emt 0:02:30]} 21. g4 {[%emt 0:01:00]} Nc6 {[%emt 0:09:40]} 22. Qf6 {[%emt 0:00:41]} Qd8 {[%emt 0:01:50]} 23. Qxd8 {[%emt 0:00:21]} Rfxd8 {[%emt 0:00:14]} 24. gxh5 {[%emt 0:00:13]} Nxd4 {[%emt 0:00:12]} 25. Nxd4 {[%emt 0:00:00]} Rxd4 {[%emt 0:00:02]} 26. Rg1 {[%emt 0:00:00]} c6 {[%emt 0:11:57]} 27. hxg6+ {[%emt 0:00:00]} fxg6 {[%emt 0:00:01]} 28. h5 {[%emt 0:00:00]} Rf8 {[%emt 0:00:31]} 29. hxg6+ {[%emt 0:00:00]} Kg7 {[%emt 0:00:02]} 30. Rh5 {[%emt 0:00:08]} Bc8 {[%emt 0:00:10]} 31. Rh7+ {[%emt 0:00:20]} Kf6 {[%emt 0:00:12]} 32. Rg4 {[%emt 0:02:23]} Rdd8 {[%emt 0:03:43]} 33. f4 {[%emt 0:02:15]} c5 {[%emt 0:01:07]} 34. Rg5 {[%emt 0:01:00]} e5 {[%emt 0:00:32]} 35. g7 {[%emt 0:00:22]} 1-0

[Event "Teplice Open 2019"]
[Site "Teplice"]
[Date "2019.06.17"]
[Round "3.15"]
[White "Greenfeld, Alon"]
[Black "Paszewski, Mateusz"]
[Result "1-0"]
[ECO "D48"]
[WhiteElo "2513"]
[BlackElo "2346"]
[Annotator "ChessBase"]
[PlyCount "63"]
[EventDate "2019.06.15"]
[EventType "swiss"]
[EventCountry "CZE"]
[SourceTitle "playchess.com"]
[Source "ChessBase"]
[SourceQuality "1"]
[TimeControl "40/5400+30:1800+30"]

1. d4 {[%emt 0:00:51]} d5 {[%emt 0:00:00]} 2. c4 {[%emt 0:01:02]} c6 {[%emt 0:00:00]} 3. Nf3 {[%emt 0:00:36]} Nf6 {[%emt 0:00:00]} 4. Nc3 {[%emt 0:01:22]} e6 {[%emt 0:02:32]} 5. e3 {[%emt 0:01:06]} Nbd7 {[%emt 0:00:06]} 6. Bd3 {[%emt 0:00:57]} dxc4 {[%emt 0:00:04]} 7. Bxc4 {[%emt 0:00:07]} b5 {[%emt 0:00:03]} 8. Bd3 {[%emt 0:00:50]} a6 {[%emt 0:00:04]} 9. e4 {[%emt 0:03:09]} c5 {[%emt 0:01:28]} 10. d5 {[%emt 0:00:48]} c4 {[%emt 0:05:08]} 11. dxe6 {[%emt 0:03:14]} fxe6 {[%emt 0:00:45]} 12. Bc2 {[%emt 0:00:20]} Qc7 {[%emt 0:01:57]} 13. O-O {[%emt 0:06:20]} Bb7 {[%emt 0:00:40]} 14. Ne2 {[%emt 0:01:39]} Bd6 {[%emt 0:16:40]} 15. Ned4 {[%emt 0:01:53]} Nc5 {[%emt 0:02:53]} 16. b4 {[%emt 0:03:15]} Ncxe4 {[%emt 0:05:56]} 17. Nxe6 {[%emt 0:02:19]} Qd7 {[%emt 0:02:17]} 18. Bxe4 {[%emt 0:02:20]} Bxe4 {[%emt 0:43:56]} 19. Nxg7+ {[%emt 0:01:49]} Qxg7 {[%emt 0:00:29]} 20. Qxd6 {[%emt 0:00:08]} Bxf3 {[%emt 0:00:19]} 21. Re1+ {[%emt 0:00:11]} Ne4 {[%emt 0:00:25]} 22. Qc6+ {[%emt 0:39:45]} Kf7 {[%emt 0:02:12]} 23. Qd5+ {[%emt 0:00:48]} Kg6 {[%emt 0:02:01]} 24. gxf3 {[%emt 0:00:25]} Rhg8 {[%emt 0:08:00]} 25. fxe4 {[%emt 0:01:57]} Qxa1 {[%emt 0:01:03]} 26. Kh1 {[%emt 0:00:16]} Qc3 {[%emt 0:01:55]} 27. Rg1+ {[%emt 0:01:54]} Kf6 {[%emt 0:00:06]} 28. Bg5+ {[%emt 0:01:55]} Rxg5 {[%emt 0:00:06]} 29. Qxg5+ {[%emt 0:00:05]} Ke6 {[%emt 0:00:45]} 30. Qd5+ {[%emt 0:00:22]} Kf6 {[%emt 0:00:05]} 31. e5+ {[%emt 0:00:20]} Qxe5 {[%emt 0:00:10]} 32. Qxa8 {[%emt 0:00:12]} 1-0